[Event "Reykjavik Open 2024"]
[Site "Reykjavik"]
[Date "2024.03.18"]
[Round "5.11"]
[White "Ivanchuk, Vasyl"]
[Black "Lu, Miaoyi"]
[Result "1/2-1/2"]
[ECO "B45"]
[WhiteElo "2625"]
[BlackElo "2392"]
[Annotator "TA"]
[PlyCount "43"]
[EventDate "2024.03.12"]
[EventCountry "ISL"]
[SourceTitle "playchess.com"]
[Source "ChessBase"]
[SourceQuality "1"]
[TimeControl "40/5400+30:1800+30"]

{[%evp 22,43,21,0,16,0,10,0,0,-4,-10,-8,-4,-15,-12,-2,-8,-10,-14,-8,0,0,-1,-16]} 1. e4 {[%emt 0:00:02]} c5 {[%emt 0:00:02]} 2. Nf3 {[%emt 0:00:05]} e6 {[%emt 0:00:05]} 3. d4 {[%emt 0:00:13]} cxd4 {[%emt 0:00:06]} 4. Nxd4 {[%emt 0:00:04]} Nf6 {[%emt 0:00:05]} 5. Nc3 {[%emt 0:00:04]} Nc6 {[%emt 0:00:03]} 6. Ndb5 {[%emt 0:00:16]} Bb4 {[%emt 0:00:09]} 7. a3 {[%emt 0:00:03]} Bxc3+ {[%emt 0:00:04]} 8. Nxc3 {[%emt 0:00:03]} d5 {[%emt 0:00:07]} 9. exd5 {[%emt 0:00:13]} exd5 {[%emt 0:00:06]} 10. Bd3 {[%emt 0:00:02]} O-O {[%emt 0:00:09]} 11. O-O {[%emt 0:00:03]} Bg4 {[%emt 0:00:05]} 12. Ne2 {[%emt 0:01:53] The position is equal.} (12. f3 $5 Bh5 13. Bg5 $14) 12... Re8 {[%emt 0:01:43]} 13. Bg5 {[%emt 0:00:45]} Nd4 {[%emt 0:02:35]} 14. f3 {[%emt 0:07:56]} Nxe2+ {[%emt 0:00:53]} 15. Bxe2 {[%emt 0:00:03][%cal Og5f6] [#] Strongly threatening Bxf6! A strong pair of Bishops.} Bf5 {[%emt 0:04:46]} 16. Kh1 {[%emt 0:01:11]} Qb6 {[%emt 0:09:50]} 17. Bd3 {[%emt 0:00:08]} Bxd3 {[%emt 0:02:02]} 18. Qxd3 {[%emt 0:00:01]} Qxb2 {[%emt 0:02:41]} 19. Rab1 {[%emt 0:00:04]} Qe5 {[%emt 0:00:16]} 20. Bxf6 {[%emt 0:00:04]} Qxf6 {[%emt 0:00:14]} 21. Rxb7 {[%emt 0:00:04]} Qc6 {[%emt 0:01:16]} 22. Rb5 {[%emt 0:03:25] Not much happened in this game.   Weighted Error Value: White=0.05 (flawless) /Black=0.02 (flawless) .  OK:         	White=4     	Black=6      Best:        	White=2     	---} 1/2-1/2

[Event "Reykjavik Open 2024"]
[Site "Reykjavik"]
[Date "2024.03.18"]
[Round "5.12"]
[White "Maze, Sebastien"]
[Black "Thorhallsson, Throstur"]
[Result "1-0"]
[ECO "B51"]
[WhiteElo "2551"]
[BlackElo "2388"]
[Annotator "TA"]
[PlyCount "109"]
[EventDate "2024.03.12"]
[EventCountry "ISL"]
[SourceTitle "playchess.com"]
[Source "ChessBase"]
[SourceQuality "1"]
[TimeControl "40/5400+30:1800+30"]

{[%evp 22,109,20,25,27,28,23,0,0,0,8,0,12,0,0,0,32,28,29,39,36,37,38,31,34,36,38,14,15,17,22,15,16,8,8,0,7,5,15,14,33,22,4,0,18,19,19,-8,119,119,328,310,364,387,370,336,340,401,341,409,406,406,398,392,387,379,365,235,446,453,452,300,372,341,347,345,534,522,483,485,601,571,705,529,640,636,863,845,1059,1048]} 1. e4 {[%emt 0:04:59]} c5 {[%emt 0:01:22]} 2. Nf3 {[%emt 0:00:05]} d6 {[%emt 0:00:11]} 3. Bb5+ {[%emt 0:00:07]} Nd7 {[%emt 0:00:50]} 4. a4 {[%emt 0:01:13]} Ngf6 {[%emt 0:02:44]} 5. Nc3 {[%emt 0:00:22]} e6 {[%emt 0:03:47]} 6. d4 {[%emt 0:02:13] B51: Sicilian: Moscow Variation (3 Bb5+) without 3...Bd7.} cxd4 {[%emt 0:02:29]} 7. Qxd4 {[%emt 0:00:03]} Be7 {[%emt 0:04:56]} 8. a5 {[%emt 0:14:06]} a6 {[%emt 0:08:25]} 9. Be2 {[%emt 0:00:09]} O-O {[%emt 0:02:11]} 10. O-O {[%emt 0:01:13]} h6 {[%emt 0:02:54]} 11. Rd1 {[%emt 0:01:59]} Qc7 {[%emt 0:01:17]} 12. h3 {[%emt 0:02:14]} Ne5 $146 {[%emt 0:03:22]} ({Predecessor:} 12... Rd8 13. Be3 e5 14. Qc4 Qxc4 15. Bxc4 Re8 16. Nd2 Nf8 17. Nd5 Nxd5 18. Bxd5 Nd7 {½-½ Livaic,L (2543)-Novosel,L (2370) CRO-ch Zagreb 2023 (4)}) 13. Nxe5 {[%emt 0:10:48]} dxe5 {[%emt 0:00:08]} 14. Qe3 {[%emt 0:00:01]} Bd7 {[%emt 0:08:49]} 15. Qg3 {[%emt 0:00:33]} Kh7 {[%emt 0:03:29]} 16. Be3 {[%emt 0:02:21]} Bc5 {[%emt 0:04:11]} 17. Bxc5 {[%emt 0:05:25]} Qxc5 {[%emt 0:00:05]} 18. Qd3 {[%emt 0:00:14]} Bc6 {[%emt 0:01:42]} 19. Qd6 {[%emt 0:01:06]} Qxd6 {[%emt 0:06:19]} 20. Rxd6 {[%emt 0:00:04]} Rfd8 {[%emt 0:00:52]} 21. Rad1 {[%emt 0:05:09]} Rxd6 {[%emt 0:01:14]} 22. Rxd6 {[%emt 0:00:01]} Kg8 {[%emt 0:00:56]} 23. f3 {[%emt 0:00:14]} Kf8 {[%emt 0:00:10]} 24. Kf2 {[%emt 0:00:44]} Ke7 {[%emt 0:00:47]} 25. Rd2 {[%emt 0:04:15]} Rc8 {[%emt 0:00:33]} 26. Ke3 {[%emt 0:00:42]} Ne8 {[%emt 0:05:08]} 27. Nb1 {[%emt 0:03:23]} Nd6 {[%emt 0:01:55]} 28. b3 {[%emt 0:00:33]} f5 {[%emt 0:05:04]} 29. Bd3 {[%emt 0:00:25]} g5 {[%emt 0:08:02]} 30. c4 {[%emt 0:01:25]} Rf8 {[%emt 0:03:16]} 31. Nc3 {[%emt 0:01:35]} h5 {[%emt 0:04:03]} 32. b4 {[%emt 0:00:52]} g4 {[%emt 0:02:54]} 33. hxg4 {[%emt 0:00:19]} hxg4 {[%emt 0:00:11]} 34. c5 {[%emt 0:02:02]} Nb5 {[%emt 0:04:17]} (34... f4+ $11 35. Ke2 gxf3+ 36. gxf3 Nf7) 35. Bxb5 $16 {[%emt 0:00:24]} f4+ $2 {[%emt 0:00:44] [#]} (35... axb5 $16 36. fxg4 Rg8) 36. Ke2 $1 $18 {[%emt 0:02:18]} (36. Kd3 axb5 37. Ke2 Rg8 $11) 36... gxf3+ {[%emt 0:01:11]} 37. gxf3 {[%emt 0:00:01]} ({Not} 37. Kf2 axb5 38. gxf3 Rh8 $16) 37... axb5 {[%emt 0:00:17]} 38. Rd6 {[%emt 0:01:09]} Rc8 {[%emt 0:02:29]} 39. Nd1 {[%emt 0:00:34]} Rg8 {[%emt 0:02:14]} 40. Nf2 {[%emt 0:02:46]} Rg1 {[%emt 0:00:30]} 41. a6 {[%emt 0:36:35]} Ra1 {[%emt 0:32:07] [#]} 42. axb7 $1 {[%emt 0:02:12]} Bxb7 {[%emt 0:00:02]} 43. Ng4 {[%emt 0:09:27]} Ra2+ {[%emt 0:02:31]} 44. Rd2 {[%emt 0:00:37]} Ra4 $2 {[%emt 0:00:17]} (44... Ra8 45. Rd6 (45. Nxe5 Kf6 $18) 45... Ra2+ 46. Kd1 Ra3 47. Nxe5 Bc8) 45. Nxe5 $18 {[%emt 0:01:19]} Bc8 {[%emt 0:00:18]} 46. c6 {[%emt 0:00:00]} Ra7 {[%emt 0:00:00]} 47. Ng6+ {[%emt 0:00:00]} Kf6 {[%emt 0:00:00]} 48. Nxf4 {[%emt 0:00:00]} Rc7 {[%emt 0:00:00]} (48... Ra6 {was necessary.} 49. Rc2 (49. Rd6 Ke5 $18) 49... Ke5) 49. Rc2 $18 {[%emt 0:00:00]} Ke5 {[%emt 0:00:00]} 50. Nd3+ {[%emt 0:00:00]} Kd4 {[%emt 0:00:00]} 51. Nc1 {[%emt 0:04:32]} Ra7 {[%emt 0:00:00]} 52. Nb3+ {[%emt 0:00:58]} Ke5 {[%emt 0:00:00]} 53. Na5 {[%emt 0:01:51]} Rh7 {[%emt 0:00:00]} 54. Rd2 {[%emt 0:01:50]} Rh2+ {[%emt 0:00:00]} 55. Ke3 {[%emt 0:00:04]} 1-0

[Event "Reykjavik Open 2024"]
[Site "Reykjavik"]
[Date "2024.03.18"]
[Round "5.13"]
[White "Jacobsen, Mikkel Manosri"]
[Black "Yilmazyerli, Mert"]
[Result "0-1"]
[ECO "A13"]
[WhiteElo "2367"]
[BlackElo "2526"]
[Annotator "TA"]
[PlyCount "56"]
[EventDate "2024.03.12"]
[EventCountry "ISL"]
[SourceTitle "playchess.com"]
[Source "ChessBase"]
[SourceQuality "1"]
[TimeControl "40/5400+30:1800+30"]

{[%evp 14,56,31,18,35,0,0,-7,0,22,7,-2,0,0,5,-16,26,-47,-58,-247,-237,-228,-197,-304,-318,-439,-464,-458,-462,-435,-450,-702,-685,-708,-685,-693,-666,-752,-713,-691,-736,-1610,-1608,-29985,-29986]} 1. c4 {[%emt 0:00:10]} Nf6 {[%emt 0:06:26]} 2. g3 {[%emt 0:00:06]} e6 {[%emt 0:00:42]} 3. Bg2 {[%emt 0:00:13]} d5 {[%emt 0:00:07]} 4. Nf3 {[%emt 0:00:05]} dxc4 {[%emt 0:00:20]} 5. Qa4+ {[%emt 0:00:06]} Nbd7 {[%emt 0:00:05]} 6. Qxc4 {[%emt 0:00:06]} a6 {[%emt 0:00:14]} 7. Qc2 {[%emt 0:00:05]} c5 {[%emt 0:00:41]} 8. Nc3 {[%emt 0:01:23]} Qc7 {[%emt 0:01:22]} 9. d4 {[%emt 0:01:47]} b5 {[%emt 0:00:53]} 10. Bf4 {[%emt 0:01:02]} Qb6 {[%emt 0:03:36] Die Stellung ist ausgeglichen.} 11. Ne5 {[%emt 0:00:15]} Bb7 {[%emt 0:04:52]} 12. Nxd7 {[%emt 0:00:08]} Nxd7 {[%emt 0:00:17]} 13. d5 {[%emt 0:00:33]} Nf6 {[%emt 0:07:23]} 14. e4 {[%emt 0:02:02]} exd5 {[%emt 0:00:05]} 15. e5 {[%emt 0:12:33]} ({Günstiger ist} 15. Nxd5 $11 Bxd5 16. exd5) 15... d4 $1 $15 {[%emt 0:13:59][%csl LRc3,LRg2]} 16. O-O-O $2 {[%emt 0:37:12] Verliert die Partie.} (16. O-O $1 $15 Nh5 (16... Bxg2 17. exf6 O-O-O 18. Kxg2 $16) 17. Na4 (17. Nd5 Bxd5 18. Bxd5 Rd8 $17) 17... bxa4 18. Qxa4+ Kd8 19. Bd2) 16... Bxg2 $19 {[%emt 0:05:02]} 17. exf6 {[%emt 0:06:09] Rhe1+ ist eine echte Drohung.} O-O-O {[%emt 0:00:18]} (17... dxc3 $2 18. Rhe1+ $18) 18. Qf5+ {[%emt 0:04:55] [#]} (18. Rhg1 $142 g5 19. Qf5+ Kb7 20. Rxg2 gxf4 21. Ne4) 18... Qe6 $1 {[%emt 0:02:06]} (18... Kb7 19. fxg7 Bxg7 20. Rhe1 $17 (20. Qxf7+ Ka8 $15)) 19. fxg7 {[%emt 0:03:27]} Qxf5 {[%emt 0:01:56]} ({Nicht} 19... Bxg7 20. Qxc5+ Qc6 21. Qf5+ Rd7 22. Rhe1 $19) 20. gxh8=Q {[%emt 0:00:11][%cal Oh1e1] [#] Rhe1! wäre nun fies.} Bh6 $1 {[%emt 0:04:13][%mdl 512]} 21. Qxd8+ {[%emt 0:00:28]} Kxd8 {[%emt 0:00:04]} 22. Rhe1 {[%emt 0:02:15]} (22. Bxh6 $142 Bxh1 23. Rxh1 dxc3 24. Rd1+ Ke7 25. Bf4) 22... Bxf4+ {[%emt 0:00:25]} 23. gxf4 {[%emt 0:00:07]} Qxf4+ {[%emt 0:00:09]} 24. Rd2 {[%emt 0:00:23]} Kc7 {[%emt 0:02:03]} 25. Ne2 {[%emt 0:03:57]} Qxf2 {[%emt 0:00:23]} 26. Red1 {[%emt 0:00:26]} Qe3 {[%emt 0:00:30] Und ...Bf3 würde nun gewinnen.} 27. Kb1 {[%emt 0:01:09]} Bf3 {[%emt 0:00:37]} 28. Nc3 {[%emt 0:01:47]} dxc3 {[%emt 0:00:06] Gewichteter Fehlerwert: Weiß=1.03/Schwarz=0.04 (makellos) .  Verlustzug:     	Weiß=1     	---        Fehler:       	Weiß=3     	---        Ungenau:       	Weiß=2     	Schwarz=2     OK:         	Weiß=4     	Schwarz=5     Bester:       	Weiß=2     	Schwarz=2     Stark:        	---       	Schwarz=2} 0-1

[Event "Reykjavik Open 2024"]
[Site "Reykjavik"]
[Date "2024.03.18"]
[Round "5.14"]
[White "Gokerkan, Cem Kaan"]
[Black "Heimisson, Hilmir Freyr"]
[Result "0-1"]
[ECO "C65"]
[WhiteElo "2523"]
[BlackElo "2355"]
[Annotator "TA"]
[PlyCount "50"]
[EventDate "2024.03.12"]
[EventCountry "ISL"]
[SourceTitle "playchess.com"]
[Source "ChessBase"]
[SourceQuality "1"]
[TimeControl "40/5400+30:1800+30"]

{[%evp 9,49,5,28,21,12,21,15,-25,0,0,0,-4,24,6,12,-129,-128,-131,-138,-187,0,0,-12,-113,-24,-28,-68,-40,-35,-1383,-1352,-2125,-2080,-29994,-1549,-1685,-1660,-29992,-29993,-29996,-29997,-29997]} 1. e4 {[%emt 0:06:36]} e5 {[%emt 0:00:23]} 2. Nf3 {[%emt 0:00:03]} Nc6 {[%emt 0:00:53]} 3. Bb5 {[%emt 0:00:04]} Nf6 {[%emt 0:03:05]} 4. d3 {[%emt 0:01:25]} Bc5 {[%emt 0:00:46]} 5. Nbd2 {[%emt 0:06:20]} O-O {[%emt 0:06:40]} 6. Bxc6 {[%emt 0:00:38]} bxc6 {[%emt 0:04:17]} 7. Nxe5 {[%emt 0:03:47]} Re8 {[%emt 0:02:52]} 8. Ng4 {[%emt 0:08:15] The position is equal.} Nxg4 {[%emt 0:10:42]} 9. Qxg4 {[%emt 0:00:02]} d5 {[%emt 0:00:26]} 10. Qh5 {[%emt 0:29:23]} dxe4 {[%emt 0:08:35]} 11. Qxc5 {[%emt 0:07:53]} (11. dxe4 {simplifies} Qd5 12. Qe2 Qg5 13. O-O) 11... exd3+ {[%emt 0:00:10]} 12. Kd1 {[%emt 0:00:02]} (12. Kf1 $11) 12... dxc2+ $1 $17 {[%emt 0:01:09]} 13. Kxc2 {[%emt 0:00:08][%cal Od2f3] [#] Black must now prevent Nf3!} Qf6 {[%emt 0:00:44]} 14. a4 {[%emt 0:09:06] [#]} (14. f3 $17 Re2 15. Rg1) 14... Rb8 $2 {[%emt 0:03:52]} ({Black should try} 14... Bf5+ $1 $19 15. Kb3 Rad8) 15. Ra3 {[%emt 0:02:45][%cal Oc2d1] aiming for Kd1!} (15. Qxa7 $2 Bf5+ 16. Kd1 Rxb2 17. Bxb2 Qxb2 $19) 15... Qg6+ {[%emt 0:11:52]} 16. Kc3 {[%emt 0:00:04]} (16. Rd3 $2 Bf5 (16... Qxg2 $2 17. Re1 $18) 17. b4 Bxd3+ $19) (16. Kd1 $1 $11 {was the only way to keep the balance.} Qxg2 17. Rf1 (17. Re1 $2 Rxe1+ 18. Kxe1 Qh1+ 19. Nf1 Ba6 $19) 17... Bg4+ 18. Kc2) 16... Qxg2 {[%emt 0:04:17] Black is more active.} (16... Rd8 $17 {[%csl Gd8][%cal Rg6d3]} 17. b4 (17. Qxa7 $2 Qd3#) 17... a5) 17. Rd1 $11 {[%emt 0:00:42]} Bg4 {[%emt 0:08:57]} 18. f3 $1 {[%emt 0:02:39]} Qe2 $40 {[%emt 0:01:54][%mdl 128] Black is up to no good. The board is on fire.} 19. Rg1 {[%emt 0:00:01][%mdl 8192] Now White is beyond hope.} (19. Kc2 $15 Re5 20. Qxe5 Qxe5 21. fxg4) 19... Re5 $19 {[%emt 0:01:50]} 20. Qxa7 {[%emt 0:08:29]} Re3+ {[%emt 0:03:59]} 21. Kd4 {[%emt 0:00:01]} Rd8+ {[%emt 0:00:32]} (21... Rb4+ $142 22. Kc5 Rb5+ 23. axb5 Qxb5+ 24. Kd4 Qe5+ 25. Kc4 Be6+ 26. Kb4 Qb5#) 22. Kc5 {[%emt 0:00:01]} Rxa3 {[%emt 0:03:35]} 23. Qxc7 {[%emt 0:00:21]} Qe3+ {[%emt 0:02:04] Black mates.} ({Not} 23... Rxd2 24. Qb8+ (24. bxa3 Qe3+ 25. Kb4 Rd4+ 26. Ka5 Qc3+ 27. Ka6 Qc4+ 28. Kb6 Qb3+ 29. Kc5 Rd5+ 30. Kxc6 Bd7+ 31. Qxd7 Qc4+ 32. Kb6 Qc5+ 33. Ka6 Qa5+ 34. Kb7 Rxd7+ 35. Kc6 Rc7+ 36. Kd6 Qc5#) (24. bxa3 Qe3+ 25. Kb4 Rd4+ 26. Ka5 Qc3+ 27. Ka6 Qc4+ 28. Kb7 Qb3+ 29. Qb6 Rd7+ 30. Ka6 Qc4+)) 24. Kb4 {[%emt 0:00:20]} Rd4+ {[%emt 0:00:58]} ({Worse is} 24... Qxg1 25. Qxd8#) 25. Nc4 {[%emt 0:00:04]} Qb3+ {[%emt 0:00:15] Weighted Error Value: White=1.12/Black=0.42.  Loses game:     	White=1     	---        Missed win:     	---       	Black=1      Mistake:       	White=3     	Black=1      Inaccurate:     	White=2     	Black=1      OK:         	White=2     	Black=6      Best:        	White=1     	Black=2      Strong:       	White=1     	Black=1} 0-1

[Event "Reykjavik Open 2024"]
[Site "Reykjavik"]
[Date "2024.03.18"]
[Round "5.15"]
[White "Suleymenov, Alisher"]
[Black "Lohia, Sohum"]
[Result "1-0"]
[ECO "E05"]
[WhiteElo "2506"]
[BlackElo "2354"]
[Annotator "TA"]
[PlyCount "67"]
[EventDate "2024.03.12"]
[EventCountry "ISL"]
[SourceTitle "playchess.com"]
[Source "ChessBase"]
[SourceQuality "1"]
[TimeControl "40/5400+30:1800+30"]

{[%evp 11,67,17,20,2,17,0,0,0,0,0,0,-43,-16,-12,0,0,105,113,105,102,108,102,102,116,107,100,325,318,413,428,426,426,422,415,414,393,374,293,278,289,289,289,295,260,454,454,518,518,1559,1320,4657,4598,4044,3392,2105,2039,5106,5102]} 1. d4 {[%emt 0:00:02]} Nf6 {[%emt 0:01:40]} 2. c4 {[%emt 0:00:07]} e6 {[%emt 0:00:12]} 3. Nf3 {[%emt 0:00:06]} d5 {[%emt 0:00:12]} 4. g3 {[%emt 0:00:05]} Be7 {[%emt 0:00:10]} 5. Bg2 {[%emt 0:00:07]} O-O {[%emt 0:00:19]} 6. O-O {[%emt 0:00:59]} dxc4 {[%emt 0:00:09]} 7. Qa4 {[%emt 0:00:07]} b6 {[%emt 0:00:52]} 8. Ne5 {[%emt 0:00:45]} Qxd4 {[%emt 0:01:14]} 9. Bxa8 {[%emt 0:00:08] The position is equal.} Qxe5 {[%emt 0:00:15]} 10. Bf3 {[%emt 0:00:20]} Nd5 {[%emt 0:00:47]} 11. Nc3 {[%emt 0:10:27]} (11. Qxc4 $5 Bf6 12. Nd2 $11) 11... Nxc3 {[%emt 0:03:46]} 12. bxc3 {[%emt 0:03:30][%cal Oc1f4]} Qxc3 {[%emt 0:08:19]} (12... Ba6 {simplifies} 13. Bd2 Bd6 14. Rab1 Qf6) 13. Qxa7 $1 {[%emt 0:12:24]} Qxa1 {[%emt 0:26:01] [#]} (13... Bd6 $11 14. Rb1 Na6) 14. Bg5 $1 $16 {[%emt 0:00:59]} Qxf1+ {[%emt 0:06:09]} 15. Kxf1 {[%emt 0:00:39]} Bxg5 {[%emt 0:00:40]} 16. Qxb8 {[%emt 0:00:21]} e5 {[%emt 0:20:56] And now ...Bh3+ would win.} 17. Qxc7 {[%emt 0:03:23][%cal Oh2h4]} Bh3+ {[%emt 0:01:43]} 18. Bg2 {[%emt 0:04:46]} Rc8 $2 {[%emt 0:01:40] [#] Black cannot hold the game after this.} (18... Be6 $16 {might work better.}) 19. Qb7 $1 $18 {[%emt 0:00:28]} (19. Qxb6 $2 {loses.} c3 20. Bxh3 c2 21. Bxc8 c1=Q+ (21... c1=B $2 {is the wrong capture.} 22. a4 $18) 22. Kg2 Qxc8 $19) ({Weaker is} 19. Qxe5 Bxg2+ 20. Kxg2 h6 $11) 19... Bxg2+ {[%emt 0:10:05]} 20. Kxg2 {[%emt 0:00:06][%mdl 4096] Endgame. KQ-KRB} Rf8 {[%emt 0:00:57]} 21. Qxb6 {[%emt 0:28:22]} Bd2 {[%emt 0:00:40]} 22. Qc6 {[%emt 0:04:12]} c3 {[%emt 0:00:10]} 23. a4 {[%emt 0:00:24]} g6 {[%emt 0:01:41]} 24. a5 {[%emt 0:01:39] Black must now prevent a6.} c2 {[%emt 0:04:28]} 25. Qxc2 {[%emt 0:02:25]} Bxa5 {[%emt 0:00:05]} 26. Qc5 {[%emt 0:00:03][%csl LRa5,LRe5]} Bd2 {[%emt 0:01:00]} 27. Qxe5 {[%emt 0:00:07]} h5 $2 {[%emt 0:02:03]} (27... Bh6 28. e4 Ra8) 28. f4 {[%emt 0:02:34][%cal Bf2f4,Bf4f5][%mdl 32] White is clearly winning.} Bb4 {[%emt 0:05:01]} 29. f5 {[%emt 0:02:50]} Kh7 {[%emt 0:00:35]} (29... gxf5 $142 30. Qxf5 Bc3 31. Qxh5 Bf6 32. Qg4+ Bg7) 30. Qf6 {[%emt 0:00:41] Strongly threatening h4.} Ba3 {[%emt 0:01:26]} 31. h4 {[%emt 0:02:12]} gxf5 {[%emt 0:01:51]} 32. Qxf5+ {[%emt 0:00:09]} Kh6 {[%emt 0:00:12]} 33. Qd3 {[%emt 0:07:45]} Bc1 {[%emt 0:01:02]} 34. Qc3 {[%emt 0:00:12] Weighted Error Value: White=0.12 (very precise) /Black=0.46.  Loses game:     	---       	Black=1      Mistake:       	---       	Black=3      Inaccurate:     	White=1     	---        OK:         	White=8     	Black=9      Best:        	White=2     	Black=3      Strong:       	White=3     	---} 1-0

[Event "Reykjavik Open 2024"]
[Site "Reykjavik"]
[Date "2024.03.18"]
[Round "5.16"]
[White "Bisby, Daniel L"]
[Black "Hjartarson, Johann"]
[Result "0-1"]
[ECO "C54"]
[WhiteElo "2273"]
[BlackElo "2460"]
[Annotator "TA"]
[PlyCount "110"]
[EventDate "2024.03.12"]
[EventCountry "ISL"]
[SourceTitle "playchess.com"]
[Source "ChessBase"]
[SourceQuality "1"]
[TimeControl "40/5400+30:1800+30"]

{[%evp 25,110,-87,-85,-92,-92,-67,-77,-112,-112,-114,-119,-104,-114,-155,-88,-84,-45,-43,-43,-67,-11,-3,0,-28,0,0,0,-68,-62,-105,-37,-47,-41,-32,-16,-16,-4,-52,-82,-69,-89,-79,0,-47,0,-22,-31,-34,0,-283,-270,-247,-247,-231,-8,-8,-8,-8,-19,-539,-556,-575,-583,-580,-594,-597,-597,-692,-710,-911,-709,-736,-764,-798,-764,-751,-758,-959,-790,-790,-752,-701,-662,-620,-631,-649,-649]} 1. e4 {[%emt 0:07:49]} e5 {[%emt 0:00:10]} 2. Nf3 {[%emt 0:00:52]} Nc6 {[%emt 0:00:07]} 3. Bc4 {[%emt 0:00:13]} Bc5 {[%emt 0:00:09]} 4. c3 {[%emt 0:00:27]} Nf6 {[%emt 0:00:07]} 5. d4 {[%emt 0:01:05]} exd4 {[%emt 0:00:11]} 6. b4 {[%emt 0:00:41]} Be7 {[%emt 0:06:23]} 7. b5 {[%emt 0:03:40]} Na5 {[%emt 0:01:48]} 8. Bd3 {[%emt 0:00:46]} d5 {[%emt 0:17:01]} 9. e5 {[%emt 0:00:32]} Ne4 {[%emt 0:01:18]} 10. cxd4 {[%emt 0:04:04]} Bb4+ {[%emt 0:00:38]} 11. Nbd2 {[%emt 0:08:10]} Bf5 {[%emt 0:00:38]} 12. Qe2 {[%emt 0:14:22]} Qd7 {[%emt 0:09:38]} 13. O-O {[%emt 0:04:34]} Nc3 {[%emt 0:08:31]} 14. Qe3 {[%emt 0:01:08] [#]} Bxd3 $1 {[%emt 0:00:07]} (14... Nxb5 $2 15. Bxf5 Qxf5 16. a4 $18) 15. Qxd3 {[%emt 0:00:05]} Qxb5 {[%emt 0:00:09]} 16. Qxb5+ {[%emt 0:06:43]} Nxb5 {[%emt 0:00:07]} 17. Rb1 {[%emt 0:00:11]} Nc6 {[%emt 0:00:09]} 18. a3 {[%emt 0:06:29]} Bxd2 $1 {[%emt 0:01:07]} (18... Nxa3 $6 19. Rxb4 Nxb4 20. Bxa3 $11) 19. Bxd2 {[%emt 0:01:54]} Nxa3 {[%emt 0:00:48]} (19... Ncxd4 20. Nxd4 Nxd4 21. Rxb7 $17) ({Black should try} 19... a6 {[%cal Oe8c8] Threatens to win with ...0-0-0!} 20. Rb3 (20. a4 Nbxd4 21. Nxd4 Nxd4 $17) 20... Ncxd4 (20... Nbxd4 $2 21. Nxd4 Nxd4 22. Rxb7 $19) 21. Nxd4 Nxd4 22. Rxb7 O-O-O) 20. Rxb7 $17 {[%emt 0:00:07]} O-O-O {[%emt 0:00:14]} 21. Rb3 $1 {[%emt 0:00:19]} Nc4 {[%emt 0:00:23]} 22. Bg5 {[%emt 0:00:34]} Rde8 {[%emt 0:03:10]} (22... Rd7 $1 $15) 23. Rb5 $1 $11 {[%emt 0:04:08]} h6 {[%emt 0:00:52]} 24. Be3 {[%emt 0:02:07]} Rd8 {[%emt 0:03:06]} 25. Ra1 {[%emt 0:01:37]} Rhe8 {[%emt 0:00:50]} 26. Rc5 {[%emt 0:04:58]} (26. Nh4 $1 $11) 26... Re6 $15 {[%emt 0:00:59]} 27. Ne1 {[%emt 0:05:27] [#]} f6 {[%emt 0:01:54]} ({Better is} 27... a5 $1 $17 {aiming for ...Nb4.} 28. Nd3 Ne7) 28. Nd3 $15 {[%emt 0:00:14]} fxe5 {[%emt 0:00:31]} 29. dxe5 {[%emt 0:00:16]} g5 {[%emt 0:00:57]} (29... N4xe5 {simplifies} 30. Nxe5 Nxe5 31. Rxa7 Rd7) 30. h4 $1 {[%emt 0:05:26]} d4 {[%emt 0:07:03]} (30... gxh4 $2 31. Nf4 Rde8 32. Nxe6 (32. Nxd5 N4xe5 $11) (32. Rxd5 Nxe3 33. fxe3 Rxe5 $17) 32... Rxe6 33. Rxd5 $18) 31. Bc1 {[%emt 0:10:48]} (31. Bxg5 $11 hxg5 32. Rxc4 Nxe5 33. Nxe5 Rxe5 34. Rxa7) 31... N4xe5 $15 {[%emt 0:00:26]} 32. Nxe5 {[%emt 0:00:15]} Nxe5 {[%emt 0:00:06]} 33. Rxa7 {[%emt 0:00:35]} c6 {[%emt 0:04:14]} (33... gxh4 $2 34. Ra8+ (34. Rcxc7+ Kb8 $18) 34... Kd7 35. Rd5+ Rd6 36. Rxd8+ (36. Rxe5 $2 Rxa8 37. Kh2 d3 $19) 36... Kxd8 37. Rxe5 $18) (33... Rc6 $17 34. Rxc6 Nxc6 35. Ra8+ Kd7 36. Rxd8+ Nxd8 (36... Kxd8 37. hxg5 hxg5 38. Bxg5+ Kd7 39. f4 $11) 37. hxg5 hxg5 38. Bxg5 Ne6 (38... c5 39. Bxd8 Kxd8 40. f4 $11)) 34. Rca5 {[%emt 0:01:56]} (34. hxg5 $11 Nd3 35. Rf5) 34... Nd3 {[%emt 0:20:39]} (34... Nc4 $15 {should be considered.} 35. Ra1 (35. Ra8+ Kc7 $14) 35... Rd5 (35... gxh4 36. Bf4 $11)) 35. Ba3 {[%emt 0:01:06]} Re1+ {[%emt 0:04:28]} 36. Kh2 {[%emt 0:00:06]} Nxf2 {[%emt 0:00:07]} 37. Rf7 $2 {[%emt 0:01:26][%mdl 8192]} (37. Ra8+ $11 Kd7 38. R8a7+ (38. Rxd8+ $2 Kxd8 39. hxg5 hxg5 $19) 38... Kc8 (38... Ke8 39. Rf5 $16) 39. Ra8+ Kd7 40. R8a7+ (40. Rxd8+ $2 Kxd8 41. hxg5 hxg5 $19) 40... Kc8 (40... Ke8 41. Rf5 $16)) 37... Rh1+ $19 {[%emt 0:00:41]} 38. Kg3 {[%emt 0:00:14]} Ne4+ {[%emt 0:00:06]} (38... gxh4+ $2 {loses.} 39. Kxf2 Kb8 40. Be7 $18 (40. Bc5 Rb1 $18)) 39. Kg4 {[%emt 0:01:02]} Rxh4+ $2 {[%emt 0:02:36]} ({Weaker is} 39... gxh4 40. Ra8#) (39... h5+ $19 40. Kxh5 Rxh4+ (40... gxh4 41. Ra8#) 41. Kg6 Rg8+ 42. Kf5 Rf4+ 43. Ke5 Rxf7 44. Ra8+ Kb7 45. Rxg8 Nc3) 40. Kf3 $11 {[%emt 0:00:38]} Rd7 {[%emt 0:00:14]} 41. Rf8+ {[%emt 0:05:19]} Kb7 {[%emt 0:00:32]} 42. Rfa8 $2 {[%emt 0:09:56][%mdl 8192]} (42. g3 $11 {and White is okay.} Nd2+ 43. Kg2) 42... Rf4+ $19 {[%emt 0:07:51]} 43. Ke2 {[%emt 0:00:14]} Nc3+ {[%emt 0:00:15]} 44. Kd3 {[%emt 0:03:08]} Nb5 {[%emt 0:00:13]} 45. Bb4 {[%emt 0:02:03]} Rg4 {[%emt 0:01:47]} 46. Rh8 {[%emt 0:01:28]} Rg3+ {[%emt 0:01:25]} 47. Ke2 {[%emt 0:03:21]} Rxg2+ {[%emt 0:01:40]} 48. Kf3 {[%emt 0:00:37]} Rb2 {[%emt 0:00:36]} 49. Bc5 {[%emt 0:00:07]} Rc2 {[%emt 0:00:32]} 50. Bb4 {[%emt 0:00:08]} Rf7+ {[%emt 0:00:50]} 51. Ke4 {[%emt 0:00:37]} Re2+ {[%emt 0:00:23]} 52. Kd3 {[%emt 0:00:08]} Re3+ {[%emt 0:00:43]} 53. Kc4 {[%emt 0:00:26]} d3 {[%emt 0:00:52]} 54. Bd2 {[%emt 0:03:04]} Re4+ {[%emt 0:00:39]} 55. Kb3 {[%emt 0:00:41]} Re2 {[%emt 0:00:24]} 0-1